bitfinex-derivatives/quotes_BTCF0:USTF0_20250528
["timestamp","ask_amount","ask_price","bid_price","bid_amount"]
[1748446840373,1.70902005,107450.0,107440.0,0.01931938]
[1748446840576,0.1860858,107440.0,107430.0,0.03529]
[1748446840880,1.29130957,107440.0,107430.0,0.07529]
[1748446841785,1.29130957,107440.0,107430.0,0.07541]
[1748446842384,1.47564199,107440.0,107430.0,0.05559266]
[1748446842582,0.1861031,107430.0,107420.0,0.03026563]
[1748446842780,1.99363262,107430.0,107420.0,0.08026563]
[1748446843077,1.99363262,107430.0,107420.0,0.08038563]
[1748446843273,1.93576494,107430.0,107420.0,0.08026563]
[1748446843677,1.93576494,107430.0,107420.0,0.08038563]
[1748446843876,1.93576494,107430.0,107420.0,0.08326563]
[1748446844076,1.93576494,107430.0,107420.0,0.08338563]
[1748446844981,1.93576494,107430.0,107420.0,0.08638563]
[1748446845287,1.93576494,107430.0,107420.0,0.03638563]
[1748446846386,1.74235478,107430.0,107420.0,0.03638563]
[1748446846583,1.54894462,107430.0,107420.0,0.06868563]
[1748446846776,1.74235478,107430.0,107420.0,0.06868563]
[1748446847586,1.93576494,107430.0,107420.0,0.03638563]
[1748446849682,2.23386494,107430.0,107420.0,0.03638563]
[1748446851091,1.85156017,107430.0,107420.0,0.03638563]
[1748446851281,2.23838049,107430.0,107420.0,0.03638563]
[1748446851782,1.96868207,107430.0,107420.0,0.006]
[1748446852187,1.85347897,107430.0,107420.0,0.00612]
[1748446852687,1.94012551,107430.0,107420.0,0.00612]
[1748446852988,1.85347897,107430.0,107420.0,0.00612]
[1748446853391,1.85347897,107430.0,107420.0,0.00204]
[1748446853687,1.94011403,107430.0,107420.0,0.00204]
[1748446854589,1.94011403,107430.0,107420.0,0.01498827]
[1748446854989,1.94656697,107430.0,107420.0,0.01498827]
[1748446855183,2.06177007,107430.0,107420.0,0.01498827]
[1748446855892,2.06177007,107430.0,107420.0,0.01486827]
[1748446856091,2.06177007,107430.0,107420.0,0.01498827]
[1748446856592,2.05529088,107430.0,107420.0,0.0149943]
[1748446856993,1.94008778,107430.0,107420.0,0.0149943]
[1748446857794,1.94008778,107430.0,107420.0,0.01499427]
[1748446858293,1.94008778,107430.0,107420.0,0.01499359]
[1748446859084,1.94008778,107430.0,107420.0,0.01499316]
[1748446859293,1.94008778,107430.0,107420.0,0.01499317]
[1748446859884,1.55298746,107430.0,107420.0,0.01499317]
[1748446860084,1.85319897,107430.0,107420.0,0.01499317]
[1748446860488,1.42684207,107430.0,107420.0,0.01499317]
[1748446860694,1.96836207,107430.0,107420.0,0.01499317]
[1748446861297,1.96836207,107430.0,107420.0,0.01500935]
[1748446862793,1.96836207,107430.0,107420.0,0.01500832]
[1748446864293,1.96836207,107430.0,107420.0,0.01501032]
[1748446864491,0.18612,107420.0,107410.0,0.03552952]
[1748446864700,1.35111941,107420.0,107410.0,0.03502646]
[1748446865398,1.35111941,107420.0,107410.0,0.00279]
[1748446865588,1.29336616,107420.0,107410.0,0.00279]
[1748446865789,1.29436616,107420.0,107410.0,0.00779]
[1748446865990,1.29436616,107420.0,107410.0,0.01191]
[1748446867905,1.29436616,107420.0,107410.0,0.04491]
[1748446868604,1.09187614,107420.0,107410.0,0.04491]
[1748446868803,1.2852863,107420.0,107410.0,0.04491]
[1748446869605,1.7221263,107420.0,107410.0,0.07701]
[1748446870896,1.63549642,107420.0,107410.0,0.07701]
[1748446871199,1.5288276,107420.0,107410.0,0.07701]
[1748446871401,1.72223776,107420.0,107410.0,0.07701]
[1748446871606,1.75069952,107420.0,107410.0,0.07701]
[1748446871996,1.63549642,107420.0,107410.0,0.07701]
[1748446872195,1.75069952,107420.0,107410.0,0.07701]
[1748446872391,1.63549642,107420.0,107410.0,0.07701]
[1748446872602,1.75069952,107420.0,107410.0,0.07701]
[1748446872810,1.75069952,107420.0,107410.0,0.10741]
[1748446872811,1.00524626,107420.0,107410.0,0.10741]
[1748446872995,0.82923009,107420.0,107410.0,0.14741]
[1748446873196,0.60684877,107420.0,107410.0,1.09775716]
[1748446873395,0.93896877,107420.0,107410.0,1.09775716]
[1748446873596,1.12508847,107420.0,107410.0,1.09775716]
[1748446873802,1.12508847,107420.0,107410.0,0.904347]
[1748446874098,1.3763474,107420.0,107410.0,0.93938271]
[1748446874297,1.22736063,107420.0,107410.0,0.94988885]
[1748446874514,0.7483148,107420.0,107410.0,0.96988885]
[1748446875406,0.70492582,107420.0,107410.0,0.98443679]
[1748446875606,0.26812582,107420.0,107410.0,0.98443679]
[1748446875816,0.70492582,107420.0,107410.0,0.98443679]
[1748446876219,0.69492582,107420.0,107410.0,0.98443679]
[1748446876621,0.69492582,107420.0,107410.0,0.98437219]
[1748446877204,0.69492582,107420.0,107410.0,0.98437793]
[1748446877410,0.69492582,107420.0,107410.0,0.96983041]
[1748446877620,0.69492582,107420.0,107410.0,0.98437791]
[1748446877804,0.69492582,107420.0,107410.0,0.98437685]
[1748446878209,0.88833598,107420.0,107410.0,0.98437685]
[1748446878418,0.88829598,107420.0,107410.0,0.98437685]
[1748446879218,0.88829598,107420.0,107410.0,0.98436757]
[1748446879625,0.88829598,107420.0,107410.0,0.79823057]
[1748446879814,1.06825598,107420.0,107410.0,0.77811057]
[1748446880010,1.06825598,107420.0,107410.0,0.92921146]
[1748446880214,1.06825598,107420.0,107410.0,0.92933146]
[1748446880514,1.07277153,107420.0,107410.0,0.94981807]
[1748446880712,1.07277153,107420.0,107410.0,0.96430727]
[1748446881021,1.07277153,107420.0,107410.0,0.96430707]
[1748446881712,1.07277153,107420.0,107410.0,0.96430542]
[1748446881912,1.07277153,107420.0,107410.0,0.96430669]
[1748446882115,1.07277153,107420.0,107410.0,0.93938231]
[1748446882322,1.07277153,107420.0,107410.0,0.96430664]
[1748446882723,1.07277153,107420.0,107410.0,0.96430582]
[1748446883226,1.07277153,107420.0,107410.0,0.95386822]
[1748446883423,1.07277153,107420.0,107410.0,0.96430311]
[1748446883616,1.07277153,107420.0,107410.0,0.96430295]
[1748446884121,1.07277153,107420.0,107410.0,0.95386772]
[1748446884322,1.07277153,107420.0,107410.0,0.93938231]
[1748446884523,1.07277153,107420.0,107410.0,0.96430245]
[1748446884724,0.88665183,107420.0,107410.0,0.96430245]
[1748446884925,1.07277113,107420.0,107410.0,0.96430245]
[1748446885123,0.44993183,107420.0,107410.0,0.96430245]
[1748446885321,0.44993183,107420.0,107410.0,1.01660988]
[1748446885322,0.69320167,107420.0,107410.0,1.01660988]
[1748446885532,0.69320167,107420.0,107410.0,1.00617416]
[1748446885828,0.69320167,107420.0,107410.0,1.02703952]
[1748446886330,0.67932097,107420.0,107410.0,1.02703952]
[1748446886721,0.62932097,107420.0,107410.0,1.02703952]
[1748446886920,0.62932097,107420.0,107410.0,1.05703885]
[1748446887327,0.19264097,107420.0,107410.0,1.05703885]
[1748446887529,0.68928097,107420.0,107410.0,1.05703828]
[1748446888031,0.68928097,107420.0,107410.0,1.05703437]
[1748446888328,0.62928097,107420.0,107410.0,1.05703437]
[1748446888533,0.66928097,107420.0,107410.0,1.057033]
[1748446889120,0.66928097,107420.0,107410.0,1.054243]
[1748446889629,0.66928097,107420.0,107410.0,1.05423996]
[1748446889832,0.66924097,107420.0,107410.0,1.02933418]
[1748446890035,0.66924097,107420.0,107410.0,1.24764863]
[1748446890332,0.22827688,107420.0,107410.0,1.32018481]
[1748446890632,0.4151415,107420.0,107410.0,1.12677465]
[1748446890818,0.4151415,107420.0,107410.0,1.03355855]
[1748446891019,0.4471415,107420.0,107410.0,1.06864061]
[1748446891324,0.4471415,107420.0,107410.0,1.07129804]
[1748446891526,0.45165705,107420.0,107410.0,1.01898941]
[1748446891730,0.22624689,107420.0,107410.0,1.01898941]
[1748446892222,0.22624689,107420.0,107410.0,1.07129804]
[1748446892426,0.22624689,107420.0,107410.0,1.07097266]
[1748446893021,0.22624689,107420.0,107410.0,1.0707775]
[1748446893221,0.22624689,107420.0,107410.0,1.04652668]
[1748446893417,0.22624689,107420.0,107410.0,1.07482438]
[1748446893926,0.04012769,107420.0,107410.0,1.04676641]
[1748446894131,0.07142769,107420.0,107410.0,1.0326173]
[1748446894433,0.07142769,107420.0,107410.0,1.04676578]
[1748446894629,0.06691214,107420.0,107410.0,1.04676578]
[1748446895030,0.06691214,107420.0,107410.0,1.04676583]
[1748446895227,0.06691214,107420.0,107410.0,1.0366647]
[1748446895428,0.06691214,107420.0,107410.0,1.04676658]
[1748446895629,0.07142769,107420.0,107410.0,1.04676635]
[1748446895930,0.45095705,107420.0,107410.0,1.04676635]
[1748446896131,0.51385705,107420.0,107410.0,1.04676635]
[1748446896332,0.51385705,107420.0,107410.0,1.04664635]
[1748446896520,0.51385705,107420.0,107410.0,1.02239575]
[1748446896727,0.51385705,107420.0,107410.0,1.04677017]
[1748446897129,0.51385705,107420.0,107410.0,1.03261913]
[1748446897437,0.51385705,107420.0,107410.0,1.04677062]
[1748446897632,0.47824491,107420.0,107410.0,1.01637062]
[1748446897831,0.68824491,107420.0,107410.0,1.01625484]
[1748446898031,0.68824491,107420.0,107410.0,1.01637484]
[1748446898635,0.68824491,107420.0,107410.0,0.99211575]
[1748446898933,0.68824491,107420.0,107410.0,1.01638037]
[1748446899438,0.50212571,107420.0,107410.0,1.01638037]
[1748446900231,0.50212571,107420.0,107410.0,1.06143552]
[1748446900434,0.50212571,107420.0,107410.0,1.07560021]
[1748446900634,0.68824491,107420.0,107410.0,1.07560021]
[1748446901231,0.68824491,107420.0,107410.0,1.06143552]
[1748446901424,0.68824491,107420.0,107410.0,1.07560632]
[1748446901927,0.68824491,107420.0,107410.0,1.01639977]
[1748446902135,0.68824491,107420.0,107410.0,1.06871277]
[1748446902436,0.68824491,107420.0,107410.0,1.03661277]
[1748446902839,0.68824491,107420.0,107410.0,1.03662612]
[1748446903037,0.68824491,107420.0,107410.0,0.67582612]
[1748446903234,0.83619853,107420.0,107410.0,0.48968962]
[1748446903440,0.83619853,107420.0,107410.0,0.40426506]
[1748446903739,0.83619853,107420.0,107410.0,0.40438537]
[1748446903935,1.19699853,107420.0,107410.0,0.17942331]
[1748446904127,1.15360491,107420.0,107410.0,0.17942331]
[1748446904327,1.21145368,107420.0,107410.0,0.36543981]
[1748446904535,1.21145368,107420.0,107410.0,0.39565981]
[1748446905133,0.92077448,107420.0,107410.0,0.38147876]
[1748446905335,1.69131212,107420.0,107410.0,0.39565819]
[1748446906346,1.69130769,107420.0,107410.0,0.39565819]
[1748446906930,1.69130769,107420.0,107410.0,0.38147819]
[1748446907141,1.69130769,107420.0,107410.0,0.39565554]
[1748446907339,1.69130769,107420.0,107410.0,0.36565554]
[1748446907535,1.69130769,107420.0,107410.0,0.35553104]
[1748446907734,1.63345892,107420.0,107410.0,0.34135369]
[1748446907938,1.63345892,107420.0,107410.0,0.36565089]
[1748446908542,1.63345892,107420.0,107410.0,0.36565012]
[1748446909154,1.63345892,107420.0,107410.0,0.39804958]
[1748446909440,1.63341892,107420.0,107410.0,0.39804887]
[1748446909845,1.63341892,107420.0,107410.0,0.33804887]
[1748446910044,1.63341892,107420.0,107410.0,0.59804887]
[1748446910246,1.63341892,107420.0,107410.0,0.57375369]
[1748446910447,1.63341892,107420.0,107410.0,0.59804836]
[1748446910642,1.63341892,107420.0,107410.0,0.58387395]
[1748446910943,1.63341892,107420.0,107410.0,0.59804728]
[1748446911146,1.59000491,107420.0,107410.0,0.59804728]
[1748446911348,1.63339495,107420.0,107410.0,0.58387311]
[1748446911550,1.63339495,107420.0,107410.0,0.59804634]
[1748446912254,1.63339495,107420.0,107410.0,0.41190983]
[1748446912440,0.25790559,107420.0,107410.0,1.15225573]
[1748446912741,0.38404491,107420.0,107410.0,1.07921626]
[1748446912943,0.56964491,107420.0,107410.0,1.07921507]
[1748446913343,0.56964491,107420.0,107410.0,1.079215]
[1748446913645,0.56964491,107420.0,107410.0,1.06909637]
[1748446913846,0.56964491,107420.0,107410.0,1.07921495]
[1748446914747,0.56964491,107420.0,107410.0,1.07921496]
[1748446915654,0.56964491,107420.0,107410.0,1.0793198]
[1748446916147,1.00600491,107420.0,107410.0,1.0993198]
[1748446916951,0.31792571,107420.0,107410.0,1.0993198]
[1748446917256,0.72526985,107420.0,107410.0,1.1452265]
[1748446917550,0.72526985,107420.0,107410.0,1.11026104]
[1748446917849,0.7297854,107420.0,107410.0,1.11026104]
[1748446918146,0.7297854,107420.0,107410.0,1.10014266]
[1748446918147,0.1073556,107420.0,107410.0,1.10014266]
[1748446918342,0.7297854,107420.0,107410.0,1.11007879]
[1748446918542,0.00451555,107420.0,107410.0,1.25118032]
[1748446918739,0.62382328,107430.0,107420.0,0.1861098]
[1748446918943,0.03089412,107430.0,107420.0,1.37430639]
[1748446919142,0.03233952,107440.0,107430.0,0.1860925]
[1748446919337,0.00013952,107440.0,107430.0,1.3932583]
[1748446919549,0.18621472,107440.0,107430.0,1.35875453]
[1748446919846,0.18621472,107440.0,107430.0,1.55127972]
[1748446920048,0.00013952,107440.0,107430.0,1.5413565]
[1748446920241,0.00013952,107440.0,107430.0,1.49874011]
[1748446920437,0.00013952,107440.0,107430.0,2.02814011]
[1748446920643,0.00013952,107440.0,107430.0,2.003685]
[1748446920845,0.70383353,107450.0,107440.0,0.1860754]
[1748446921047,0.34755353,107450.0,107440.0,1.19310106]
[1748446921552,0.30755353,107450.0,107440.0,1.19310106]
[1748446922145,0.34055353,107450.0,107440.0,1.19310106]
[1748446922350,0.29403513,107450.0,107440.0,1.19310106]
[1748446922747,0.29403513,107450.0,107440.0,1.22807688]
[1748446922954,0.29603513,107450.0,107440.0,1.22807688]
[1748446923254,0.26403513,107450.0,107440.0,1.21335379]
[1748446923450,0.043,107450.0,107440.0,1.42130631]
[1748446923646,0.003,107450.0,107440.0,1.42130631]
[1748446923846,0.003,107450.0,107440.0,1.52570623]
[1748446924047,0.003,107450.0,107440.0,1.49073041]
[1748446924353,0.003,107450.0,107440.0,1.52563803]
[1748446924554,0.003,107450.0,107440.0,1.5256375]
[1748446924855,0.003,107450.0,107440.0,1.6187095]
[1748446925048,0.00751555,107450.0,107440.0,1.82307488]
[1748446925245,0.00751555,107450.0,107440.0,1.96132562]
[1748446925462,0.00751555,107450.0,107440.0,1.96019548]
[1748446925662,0.00751555,107450.0,107440.0,1.94947945]
[1748446925965,0.00551555,107450.0,107440.0,1.96018353]
[1748446926144,0.00451555,107450.0,107440.0,1.96018353]
[1748446926448,0.00451555,107450.0,107440.0,1.96218353]
[1748446926654,0.00451555,107450.0,107440.0,1.96318353]
[1748446927061,0.00451555,107450.0,107440.0,1.89329645]
[1748446927444,0.00451555,107450.0,107440.0,1.94557162]
[1748446928246,0.00451555,107450.0,107440.0,1.67032514]
[1748446928559,0.00451555,107450.0,107440.0,1.69555818]
[1748446928853,0.00451555,107450.0,107440.0,1.68486494]
[1748446929054,0.00451555,107450.0,107440.0,1.69555472]
[1748446929454,0.00451555,107450.0,107440.0,1.69555477]
[1748446929654,0.00013952,107460.0,107450.0,0.37946826]
[1748446929955,0.00013952,107460.0,107450.0,1.94326839]
[1748446930154,0.00013952,107460.0,107450.0,1.94377145]
[1748446930851,0.03273952,107460.0,107450.0,1.9437686]
[1748446931055,0.03273952,107460.0,107450.0,2.01444871]
[1748446931755,0.03273952,107460.0,107450.0,2.08511319]
[1748446932050,0.03273952,107460.0,107450.0,2.01443926]
[1748446932255,0.03273952,107460.0,107450.0,1.94375915]
[1748446932456,0.03273952,107460.0,107450.0,1.94375825]
[1748446932640,0.03273952,107460.0,107450.0,1.5076772]
[1748446932846,0.03273952,107460.0,107450.0,1.1556471]
[1748446932847,0.23878032,107460.0,107450.0,1.1556471]
[1748446933045,0.49329048,107460.0,107450.0,1.1556471]
[1748446933253,0.29988032,107460.0,107450.0,1.1556471]
[1748446933451,0.29988032,107460.0,107450.0,1.21451835]
[1748446933659,0.29988032,107460.0,107450.0,1.20397371]
[1748446933860,0.29988032,107460.0,107450.0,1.16503701]
[1748446934061,0.29988032,107460.0,107450.0,1.16915319]
[1748446934253,0.29988032,107460.0,107450.0,1.17969784]
[1748446934555,0.29988032,107460.0,107450.0,1.17969834]
[1748446935057,0.49329048,107460.0,107450.0,1.04722853]
[1748446935256,0.49329048,107460.0,107450.0,1.03268819]
[1748446935455,0.49329048,107460.0,107450.0,1.04722989]
[1748446935655,0.49329048,107460.0,107450.0,1.03668437]
[1748446935852,0.49329048,107460.0,107450.0,1.04711071]
[1748446936167,0.68329048,107460.0,107450.0,1.04723223]
[1748446936658,0.68329048,107460.0,107450.0,1.04723404]
[1748446936955,1.11921048,107460.0,107450.0,1.04723404]
[1748446937254,1.11921048,107460.0,107450.0,1.03269188]
[1748446937564,1.11921048,107460.0,107450.0,1.04723547]
[1748446938157,1.11921048,107460.0,107450.0,1.04723735]
[1748446938356,1.11921048,107460.0,107450.0,1.03257522]
[1748446938656,1.11921048,107460.0,107450.0,1.02214263]
[1748446938857,1.11921048,107460.0,107450.0,1.03269801]
[1748446939062,1.11921048,107460.0,107450.0,1.04724015]
[1748446939661,1.11921048,107460.0,107450.0,0.95536868]
[1748446940253,1.12372603,107460.0,107450.0,0.95537203]
[1748446940549,1.12372603,107460.0,107450.0,0.95537478]
[1748446940550,1.12368603,107460.0,107450.0,0.95537478]
[1748446940757,0.68780603,107460.0,107450.0,0.98677478]
[1748446940964,1.12368603,107460.0,107450.0,0.98677478]
[1748446941256,1.12368603,107460.0,107450.0,0.98677947]
[1748446941460,0.93027587,107460.0,107450.0,0.98677947]
[1748446941661,0.74423507,107460.0,107450.0,0.98677947]
[1748446941857,0.74423507,107460.0,107450.0,1.01907997]
[1748446941858,0.93027597,107460.0,107450.0,1.01907997]
[1748446942057,0.74423507,107460.0,107450.0,1.07795098]
[1748446942248,0.30835507,107460.0,107450.0,1.07795096]
[1748446942451,0.49439597,107460.0,107450.0,1.07795096]
[1748446942647,0.30835507,107460.0,107450.0,1.07795096]
[1748446942862,0.30835507,107460.0,107450.0,1.11065096]
[1748446943054,0.49439607,107460.0,107450.0,1.13680721]
[1748446943262,0.68780623,107460.0,107450.0,1.07793574]
[1748446943563,0.68780623,107460.0,107450.0,1.06736867]
[1748446943863,0.68780623,107460.0,107450.0,1.0452355]
[1748446944363,0.68780623,107460.0,107450.0,1.04775635]
[1748446944661,0.68780623,107460.0,107450.0,1.01293599]
[1748446944863,0.68780623,107460.0,107450.0,1.01281599]
[1748446945165,0.68780623,107460.0,107450.0,1.04763658]
[1748446945351,0.68780623,107460.0,107450.0,1.04763634]
[1748446945550,0.93760523,107460.0,107450.0,1.04764732]
[1748446945751,0.30835507,107460.0,107450.0,1.0780681]
[1748446945966,0.93019607,107460.0,107450.0,1.0780681]
[1748446946258,0.30835507,107460.0,107450.0,1.05191185]
[1748446946464,0.54415507,107460.0,107450.0,1.05191185]
[1748446946665,0.54415507,107460.0,107450.0,1.05191134]
[1748446947257,0.54415507,107460.0,107450.0,0.95133262]
[1748446947462,0.54415507,107460.0,107450.0,1.19191174]
[1748446947463,0.29003392,107460.0,107450.0,1.19191174]
[1748446947654,0.29003392,107460.0,107450.0,0.99191174]
[1748446947862,0.29003392,107460.0,107450.0,1.04418626]
[1748446948063,0.29003392,107460.0,107450.0,1.04407]
[1748446948266,0.29003392,107460.0,107450.0,1.00924941]
[1748446948460,0.4722767,107460.0,107450.0,1.00924941]
[1748446948660,0.27886654,107460.0,107450.0,1.07991389]
[1748446948970,0.27886664,107460.0,107450.0,1.06537338]
[1748446949268,0.27886664,107460.0,107450.0,1.07991436]
[1748446949456,0.27232323,107460.0,107450.0,1.07991436]
[1748446950353,0.08628203,107460.0,107450.0,1.00924988]
[1748446950558,0.07115976,107460.0,107450.0,1.20980904]
[1748446950757,0.07115976,107460.0,107450.0,1.02668297]
[1748446951060,0.07115976,107460.0,107450.0,1.22668297]
[1748446951360,0.06115976,107460.0,107450.0,1.42009313]
[1748446951566,0.06115976,107460.0,107450.0,1.42008393]
[1748446951758,0.24720096,107460.0,107450.0,1.23008393]
[1748446951959,0.24720096,107460.0,107450.0,1.22031206]
[1748446952155,0.24720096,107460.0,107450.0,1.23058699]
[1748446952469,0.24720096,107460.0,107450.0,1.47293683]
[1748446952857,0.28720096,107460.0,107450.0,1.47293683]
[1748446953171,0.10115976,107460.0,107450.0,1.66293683]
[1748446953564,0.28720096,107460.0,107450.0,1.64839623]
[1748446953762,0.28720096,107460.0,107450.0,1.70881722]
[1748446953763,0.10115976,107460.0,107450.0,1.70881722]
[1748446953953,0.10115976,107460.0,107450.0,1.69427737]
[1748446954159,0.10115976,107460.0,107450.0,1.70881797]
[1748446954362,0.10115976,107460.0,107450.0,1.27305797]
[1748446954964,0.10115976,107460.0,107450.0,1.27305807]
[1748446955165,0.07115976,107460.0,107450.0,1.27305807]
[1748446955355,0.07115976,107460.0,107450.0,1.27305803]
[1748446955863,0.06115976,107460.0,107450.0,1.27305803]
[1748446956068,0.06115976,107460.0,107450.0,1.05305803]
[1748446956268,0.09445976,107460.0,107450.0,1.05305801]
[1748446956567,0.51391112,107460.0,107450.0,0.99794099]
[1748446956866,0.51391112,107460.0,107450.0,1.07636184]
[1748446957169,0.51391112,107460.0,107450.0,0.90699414]
[1748446957368,0.51391112,107460.0,107450.0,1.0057791]
[1748446957572,0.51391112,107460.0,107450.0,1.02032073]
[1748446957755,0.94963112,107460.0,107450.0,1.03059997]
[1748446957960,0.94963112,107460.0,107450.0,1.03047997]
[1748446958156,0.94963112,107460.0,107450.0,1.03059997]
[1748446958364,1.14963112,107460.0,107450.0,1.03047997]
[1748446958567,1.14963112,107460.0,107450.0,1.03060048]
[1748446958866,1.14963112,107460.0,107450.0,1.06561312]
[1748446959054,0.90963112,107460.0,107450.0,1.03060048]
[1748446959259,0.90963112,107460.0,107450.0,1.03060096]
[1748446959461,1.08963112,107460.0,107450.0,1.03060096]
[1748446960161,1.08963112,107460.0,107450.0,1.06561318]
[1748446960363,1.08963112,107460.0,107450.0,1.06290057]
[1748446960568,1.08963112,107460.0,107450.0,1.06290105]
[1748446960771,1.08963112,107460.0,107450.0,1.06290194]
[1748446961875,1.08963112,107460.0,107450.0,1.06290289]
[1748446962373,1.08963112,107460.0,107450.0,0.99181691]
[1748446962759,0.27445976,107460.0,107450.0,1.05107179]
[1748446962964,0.27445976,107460.0,107450.0,1.21762815]
[1748446963166,0.27445976,107460.0,107450.0,1.21762771]
[1748446963359,0.67679976,107460.0,107450.0,1.02421755]
[1748446963565,0.85847895,107460.0,107450.0,1.02421755]
[1748446963765,0.88967895,107460.0,107450.0,1.02421841]
[1748446964065,1.06537773,107460.0,107450.0,1.02421841]
[1748446964274,0.62973773,107460.0,107450.0,1.02391129]
[1748446964466,0.62973773,107460.0,107450.0,0.97696974]
[1748446964665,0.62973773,107460.0,107450.0,0.98151132]
[1748446964867,0.62973773,107460.0,107450.0,0.94909132]
[1748446965066,0.62973773,107460.0,107450.0,0.94921132]
[1748446965366,1.06537773,107460.0,107450.0,0.94909132]
[1748446965678,1.06537773,107460.0,107450.0,0.98221132]
[1748446965867,0.62973773,107460.0,107450.0,1.00353491]
[1748446966063,0.87196757,107460.0,107450.0,1.01349493]
[1748446966279,0.00451555,107460.0,107450.0,1.38690509]
[1748446966574,0.00451555,107460.0,107450.0,1.40427183]
[1748446966974,0.00451555,107460.0,107450.0,1.40425898]
[1748446967170,0.00451555,107460.0,107450.0,1.39431134]
[1748446967376,0.00451555,107460.0,107450.0,1.52127238]
[1748446967671,0.00451555,107460.0,107450.0,1.425676]
[1748446967877,0.00451555,107460.0,107450.0,1.4501637]
[1748446968270,0.00451555,107460.0,107450.0,1.45016372]
[1748446968580,0.00451555,107460.0,107450.0,1.45016285]
[1748446969380,0.00451555,107460.0,107450.0,1.425676]
[1748446969576,0.23267232,107470.0,107460.0,0.1860417]
[1748446969778,0.27267232,107470.0,107460.0,1.16017372]
[1748446969980,0.22616602,107470.0,107460.0,1.2300608]
[1748446970175,0.18616382,107470.0,107460.0,1.41814106]
[1748446970371,0.00013952,107470.0,107460.0,1.48802776]
[1748446970571,0.18616382,107470.0,107460.0,1.48802776]
[1748446970880,0.19016382,107470.0,107460.0,1.84882776]
[1748446971380,0.00413952,107470.0,107460.0,1.77894068]
[1748446971680,0.00413952,107470.0,107460.0,1.86255206]
[1748446972074,0.00413952,107470.0,107460.0,1.84882776]
[1748446972275,0.00413952,107470.0,107460.0,1.84167147]
[1748446972483,0.00413952,107470.0,107460.0,1.85161578]
[1748446972781,0.00413952,107470.0,107460.0,1.85161584]
[1748446973871,0.00413952,107470.0,107460.0,1.65820568]
[1748446974070,0.00413952,107470.0,107460.0,2.3767964]
[1748446974272,0.00413952,107470.0,107460.0,2.3913346]
[1748446974666,0.00413952,107470.0,107460.0,2.43721363]
[1748446974875,1.06895336,107480.0,107470.0,0.1860243]
[1748446975076,1.13895336,107480.0,107470.0,1.00421963]
[1748446975277,1.13895336,107480.0,107470.0,1.00472269]
[1748446975674,1.13895336,107480.0,107470.0,1.00472201]
[1748446975874,1.13895336,107480.0,107470.0,0.99478039]
[1748446976073,1.14195336,107480.0,107470.0,0.99478039]
[1748446976278,1.14195336,107480.0,107470.0,1.00472194]
[1748446976473,1.14495336,107480.0,107470.0,1.00472194]
[1748446976679,1.14495336,107480.0,107470.0,1.00484132]
[1748446976883,1.07495336,107480.0,107470.0,1.00484132]
[1748446977380,1.11844786,107480.0,107470.0,1.00484132]
[1748446977586,0.8785329,107480.0,107470.0,1.00484158]
[1748446977779,1.07194306,107480.0,107470.0,1.00484158]
[1748446978086,0.98194306,107480.0,107470.0,1.00484158]
[1748446978383,1.07194306,107480.0,107470.0,1.00484158]
[1748446978981,1.07194306,107480.0,107470.0,1.00484021]
[1748446979578,1.07194306,107480.0,107470.0,1.05070815]
[1748446979980,1.07194306,107480.0,107470.0,1.04076833]
[1748446980181,1.07194306,107480.0,107470.0,1.05070777]
[1748446980579,1.07194306,107480.0,107470.0,1.08180777]
[1748446981370,1.07194306,107480.0,107470.0,1.08180689]
[1748446981575,1.07194306,107480.0,107470.0,1.10805174]
[1748446982084,1.07194306,107480.0,107470.0,1.07695174]
[1748446982281,0.59638306,107480.0,107470.0,1.0624123]
[1748446982480,0.59638306,107480.0,107470.0,0.61113906]
[1748446982481,0.98182306,107480.0,107470.0,0.61113906]
[1748446982687,0.98182306,107480.0,107470.0,0.55863002]
[1748446982688,1.67262306,107480.0,107470.0,0.55863002]
[1748446982981,1.31182306,107480.0,107470.0,0.55863002]
[1748446983199,0.98182306,107480.0,107470.0,0.91943002]
[1748446983379,1.11182306,107480.0,107470.0,0.90477052]
[1748446983579,1.1552623,107480.0,107470.0,0.91943041]
[1748446983780,1.1552623,107480.0,107470.0,0.55863088]
[1748446983978,1.1552623,107480.0,107470.0,0.53415227]
[1748446984182,1.1552623,107480.0,107470.0,0.54869213]
[1748446984386,1.19869754,107480.0,107470.0,0.55862005]
[1748446984580,0.52640814,107480.0,107470.0,0.55862005]
[1748446984781,0.96180814,107480.0,107470.0,0.91942005]
[1748446984982,0.72433385,107480.0,107470.0,0.95202311]
[1748446985177,0.23360079,107480.0,107470.0,1.15346549]
[1748446985381,0.22705829,107480.0,107470.0,1.42926103]
[1748446985580,0.22705829,107480.0,107470.0,1.87919939]
[1748446985782,0.18362305,107480.0,107470.0,1.95795357]
[1748446985980,0.18362305,107480.0,107470.0,2.00074336]
[1748446985981,0.02302305,107480.0,107470.0,2.00074336]
[1748446986284,0.00751555,107480.0,107470.0,1.79819042]
[1748446986488,0.19152265,107480.0,107470.0,1.06534026]
[1748446986684,0.03841555,107480.0,107470.0,1.89478026]
[1748446986882,0.03841555,107480.0,107470.0,1.89466026]
[1748446987084,0.77713912,107490.0,107480.0,0.1860071]
[1748446987085,0.9528195,107490.0,107480.0,0.1860071]
[1748446987280,0.89130934,107490.0,107480.0,1.03458824]
[1748446987481,0.89130934,107490.0,107480.0,1.10384473]
[1748446987892,0.89130934,107490.0,107480.0,1.10663259]
[1748446988480,0.89130934,107490.0,107480.0,1.09178908]
[1748446988682,0.5001,107490.0,107480.0,1.2997366]
[1748446988883,0.2506898,107490.0,107480.0,1.28632641]
[1748446989077,0.5606898,107490.0,107480.0,1.26122839]
[1748446989283,0.5606898,107490.0,107480.0,1.28632635]
[1748446989482,0.5606898,107490.0,107480.0,1.30484035]
[1748446989678,0.2506898,107490.0,107480.0,1.29030301]
[1748446989884,0.2506898,107490.0,107480.0,1.31937731]
[1748446990092,0.2506898,107490.0,107480.0,1.30484016]
[1748446990294,0.2506898,107490.0,107480.0,1.29030301]
[1748446990594,0.0647,107490.0,107480.0,1.30484016]
[1748446990784,0.2506898,107490.0,107480.0,0.94404016]
[1748446991092,0.2506898,107490.0,107480.0,1.50878806]
[1748446991093,0.2606898,107490.0,107480.0,1.50878806]
[1748446991398,0.2606898,107490.0,107480.0,1.51278743]
[1748446991604,0.2606898,107490.0,107480.0,1.52332592]
[1748446992094,0.0747,107490.0,107480.0,1.52332592]
[1748446992291,0.2606898,107490.0,107480.0,1.52332393]
[1748446992595,0.2606898,107490.0,107480.0,1.32991215]
[1748446992795,0.2606898,107490.0,107480.0,1.52332231]
[1748446992995,0.2606898,107490.0,107480.0,1.32991282]
[1748446993698,0.2606898,107490.0,107480.0,1.32991285]
[1748446993888,0.2606898,107490.0,107480.0,1.30484016]
[1748446994081,0.48659996,107490.0,107480.0,1.31537671]
[1748446994287,0.48659996,107490.0,107480.0,1.3299138]
[1748446994593,0.48659996,107490.0,107480.0,1.3300338]
[1748446994892,0.2931898,107490.0,107480.0,1.3300338]
[1748446995097,0.2931898,107490.0,107480.0,1.34457175]
[1748446995286,0.2931898,107490.0,107480.0,1.30496016]
[1748446995486,0.2931898,107490.0,107480.0,1.34457416]